Body,Body Name,Date,Transaction Number,Amount,Supplier Name,Supplier ID,Expense Area,Expense Type,Expense Code,Extended Description,Service Code,Service Label,Service Division Label,Service Division Code
http://statistics.data.gov.uk/id/local-authority/16UF,Eden District Council,10/03/2017,155873,1306.25,OYSTER PARTNERSHIP,OYS001,Planning Services,Agency Staff,0003,W/C 20/02/17 ,PLASER,Planning Services,00304,Planning Services
http://statistics.data.gov.uk/id/local-authority/16UF,Eden District Council,10/03/2017,155709,1710,OYSTER PARTNERSHIP,OYS001,Planning Services,Agency Staff,0003,W/C 13/02/17 ,PLASER,Planning Services,00304,Planning Services
http://statistics.data.gov.uk/id/local-authority/16UF,Eden District Council,10/03/2017,155868,885,WILKINSON JAMES PARTNERSHIP LIMITED,WIL023,Technical Services Manager,Building Maintenance,1000,PENRITH FOOTBALL CLUB,LANDMA,Land Management,02380,Frenchfield Stadium
http://statistics.data.gov.uk/id/local-authority/16UF,Eden District Council,10/03/2017,155697,1090.62,NPOWER LTD,NPO001,Technical Services Manager,Electricity,1022,TOWN HALL,ADMBLD,Administrative Buildings,00500,Town Hall
http://statistics.data.gov.uk/id/local-authority/16UF,Eden District Council,10/03/2017,155680,14796.45,AMEY PLC,TFE001,Technical Services Manager,Window cleaning,1040,2017_BC_02,PUBCON,Public Conveniences,02630,Disabled Toilet Moot Hall Appleby
http://statistics.data.gov.uk/id/local-authority/16UF,Eden District Council,10/03/2017,155713,5396.25,AMEY PLC,TFE001,Technical Services Manager,ADHOC WORKS FOR BURIALS,1079,GM102,CEMETE,Cemeteries,02229,Alston Moor Cemetery
http://statistics.data.gov.uk/id/local-authority/16UF,Eden District Council,10/03/2017,155693,15719.26,AMEY PLC,TFE001,Technical Services Manager,GM INSPECTIONS & MAINTENANCE,1089,M-GM59,CLCHYD,Closed Church Yards,02246,War Memorials
http://statistics.data.gov.uk/id/local-authority/16UF,Eden District Council,10/03/2017,155824,3496.43,AMEY PLC,TFE001,Technical Services Manager,Bank-Refurbishment,2009,GM103,RECYCL,Recycling,03047,Recycling
http://statistics.data.gov.uk/id/local-authority/16UF,Eden District Council,10/03/2017,155869,1800,RH ENVIRONMENTAL LTD,RHE002,Environmental Services,"Books, publications",2016,ANNUAL LICENCE,ENVSER,Environmental Services,00303,Environmental Services
http://statistics.data.gov.uk/id/local-authority/16UF,Eden District Council,10/03/2017,155812,913.33,VIP SYSTEM LTD,VIP001,Legal Services Manager,"Badges, plates, signs",2019,HARD PLATES/WALLETS,LICENC,Licensing,03023,Hackney & Private Hire Licences
http://statistics.data.gov.uk/id/local-authority/16UF,Eden District Council,10/03/2017,155879,4140,M TAYLOR ASSOCIATES LTD,TAY017,Human Resources Manager,Professional fees,2045,HR SUPPORT FEBRUARY 2017,HUMRES,Human Resources,00207,Human Resources
http://statistics.data.gov.uk/id/local-authority/16UF,Eden District Council,10/03/2017,155750,2350,WILKINSON JAMES PARTNERSHIP LIMITED,WIL023,Technical Services Manager,Other charges for services,2047,PENRITH CASTLE PARK DESIGN SERVICES,ARTLEI,Arts and Leisure,02116,Sports leisure develop fund
http://statistics.data.gov.uk/id/local-authority/16UF,Eden District Council,10/03/2017,155715,840.51,BT PHONE BOOK,BTP001,Legal Services Manager,Other charges for services,2047,PHONE BOOK ADVERTISING,COMDEV,Community Development & Engagement,01195,Consultation Support
http://statistics.data.gov.uk/id/local-authority/16UF,Eden District Council,10/03/2017,155815,4944,CATSTYCAM LTD,CAT004,Director of Finance,Grants and contributions,2079,PLGRGRANT EDC16106,FLOOD,Flood Dec 2015,09318,Flood Dec 2015
http://statistics.data.gov.uk/id/local-authority/16UF,Eden District Council,10/03/2017,155819,5000,redacted information,WAR025,Director of Finance,Grants and contributions,2079,PLFRGRANT EDC16109,FLOOD,Flood Dec 2015,09318,Flood Dec 2015
http://statistics.data.gov.uk/id/local-authority/16UF,Eden District Council,10/03/2017,155820,5000,redacted information,SCO021,Director of Finance,Grants and contributions,2079,PLFRGRANT EDC16121,FLOOD,Flood Dec 2015,09318,Flood Dec 2015
http://statistics.data.gov.uk/id/local-authority/16UF,Eden District Council,10/03/2017,155821,3300,redacted information,BUR040,Director of Finance,Grants and contributions,2079,PLFRGRANT EDC16110,FLOOD,Flood Dec 2015,09318,Flood Dec 2015
http://statistics.data.gov.uk/id/local-authority/16UF,Eden District Council,10/03/2017,155822,4777.7,redacted information,FLE004,Director of Finance,Grants and contributions,2079,PLFRGRANT EDC16190,FLOOD,Flood Dec 2015,09318,Flood Dec 2015
http://statistics.data.gov.uk/id/local-authority/16UF,Eden District Council,10/03/2017,155848,1610,redacted information,TOW006,Director of Finance,Grants and contributions,2079,PLFRGRANTEDC16300,FLOOD,Flood Dec 2015,09318,Flood Dec 2015
http://statistics.data.gov.uk/id/local-authority/16UF,Eden District Council,10/03/2017,155861,3633.6,redacted information,BOW012,Director of Finance,Grants and contributions,2079,PLFRGRANT EDC16061,FLOOD,Flood Dec 2015,09318,Flood Dec 2015
http://statistics.data.gov.uk/id/local-authority/16UF,Eden District Council,10/03/2017,155862,1062,redacted information,SAW002,Director of Finance,Grants and contributions,2079,PLFRGRANT EDC16344,FLOOD,Flood Dec 2015,09318,Flood Dec 2015
http://statistics.data.gov.uk/id/local-authority/16UF,Eden District Council,10/03/2017,155864,975,redacted information,MET021,Director of Finance,Grants and contributions,2079,PLFRGRANT EDC16348,FLOOD,Flood Dec 2015,09318,Flood Dec 2015
http://statistics.data.gov.uk/id/local-authority/16UF,Eden District Council,10/03/2017,155865,1505,redacted information,MET021,Director of Finance,Grants and contributions,2079,PLFRGRANT EDC16348,FLOOD,Flood Dec 2015,09318,Flood Dec 2015
http://statistics.data.gov.uk/id/local-authority/16UF,Eden District Council,10/03/2017,155690,670,IAN CANNON LTD,CAN004,Planning Services,Direct Action - Planning Enforcement,2196, NENTHEAD,DEVCOE,Development Control & Enforcement,03010,Development Control & Enforcement
http://statistics.data.gov.uk/id/local-authority/16UF,Eden District Council,10/03/2017,155712,64262.9,AMEY PLC,TFE001,Technical Services Manager,Contract refuse collection,3003,M-RC59,REFCOL,Refuse Collection,03050,Clinical Expenditure
http://statistics.data.gov.uk/id/local-authority/16UF,Eden District Council,10/03/2017,155711,16837.1,AMEY PLC,TFE001,Environmental Services,Street Cleaning Contract,3100,M-SC59,APFAIR,Appleby Fair,03036,Appleby Fair
http://statistics.data.gov.uk/id/local-authority/16UF,Eden District Council,10/03/2017,155678,2843.27,AMEY PLC,TFE001,Technical Services Manager,FL  Contract,3300,FL-11/2016,FOOLIG,Footway Lighting,02258,Footway lighting
http://statistics.data.gov.uk/id/local-authority/16UF,Eden District Council,10/03/2017,155803,624,ELECTRICITY NORTH WEST LTD,ELE005,Technical Services Manager,FL Schedule of Rates,3302,LAMP DISC NORTH VIEW GT ASBY,FOOLIG,Footway Lighting,02258,Footway lighting
http://statistics.data.gov.uk/id/local-authority/16UF,Eden District Council,10/03/2017,155688,2063.28,CUMBRIA WASTE RECYCLING LTD,CUM022,Technical Services Manager,material price fluctuations,3604,F-10-16/17,RECYCL,Recycling,03047,Recycling
http://statistics.data.gov.uk/id/local-authority/16UF,Eden District Council,10/03/2017,155847,3065,C W COX & SONS (KENDAL)  LTD,COX001,Environmental Services,Capital grants,5505,FINAL PAYMENT  PENRITH,MEREGR,1996 Mandatory Renovation Grants,06035,Disabled Facility Grants
http://statistics.data.gov.uk/id/local-authority/16UF,Eden District Council,10/03/2017,155601,8874.06,CIVICA UK LTD,CIV002,Financial Services Manager,Balance brought forward BS,6000,LICENCE SUPPORT/MAINTENANCE 2017/18,REVBEN,Revenue & Benefits,10263,Payments in Adv - Gf
http://statistics.data.gov.uk/id/local-authority/16UF,Eden District Council,10/03/2017,155841,647.67,PRESERVATION EQUIPMENT LTD,PRE009,Technical Services Manager,Balance Sheet entry BS,6003,ASSORTED GOODS,MUSEUM,PENRITH MUSEUM GRANT FUND,10342,PENRITH MUSEUM GRANT FUND
http://statistics.data.gov.uk/id/local-authority/16UF,Eden District Council,14/03/2017,156251,1037.5,HDEW CAMERAS,HDE001,Legal Services Manager,Equipment � purchase,2000, BARCLAYCARD FEBRUARY PAID MARCH,COMMSV,Communications Services,01180,Communications Equipment
http://statistics.data.gov.uk/id/local-authority/16UF,Eden District Council,14/03/2017,156250,575,THE CHARTERED INSTITUTE OF MARKETING,CHA037,Legal Services Manager,Advertising,2086, BARCLAYCARD FEBRUARY PAID MARCH,COMMSV,Communications Services,01127,Corporate Advertising
http://statistics.data.gov.uk/id/local-authority/16UF,Eden District Council,17/03/2017,155827,1145,TOTALMOBILE LTD,CON001,Human Resources Manager,Training Expenses,0060,DEBTORS CONSULTANCY + EXPENSES,STADEV,Staff Development,00224,Staff Training DoF
http://statistics.data.gov.uk/id/local-authority/16UF,Eden District Council,17/03/2017,155938,500.59,BRITISH GAS BUSINESS,BRI032,Technical Services Manager,Gas,1023,MANSION HOUSE JAN 17,ADMBLD,Administrative Buildings,00502,Mansion House
http://statistics.data.gov.uk/id/local-authority/16UF,Eden District Council,17/03/2017,155939,865.19,BRITISH GAS BUSINESS,BRI032,Technical Services Manager,Gas,1023,TOWN HALL JAN 17,ADMBLD,Administrative Buildings,00500,Town Hall
http://statistics.data.gov.uk/id/local-authority/16UF,Eden District Council,17/03/2017,155923,-3687.16,THOMSON REUTERS LEGAL UK & IRELAND,SWE001,Legal Services Manager,"Books, publications",2016,WESTLAW / PRACTICAL LAW SERVICES,LEGSER,Legal Services,00201,Legal & Committee
http://statistics.data.gov.uk/id/local-authority/16UF,Eden District Council,17/03/2017,155924,11866.4,THOMSON REUTERS LEGAL UK & IRELAND,SWE001,Legal Services Manager,"Books, publications",2016,WESTLAW / PRACTICAL LAW SERVICES,LEGSER,Legal Services,00201,Legal & Committee
http://statistics.data.gov.uk/id/local-authority/16UF,Eden District Council,17/03/2017,155925,-8179.24,THOMSON REUTERS LEGAL UK & IRELAND,SWE001,Legal Services Manager,"Books, publications",2016,WESTLAW SERVICES,LEGSER,Legal Services,00201,Legal & Committee
http://statistics.data.gov.uk/id/local-authority/16UF,Eden District Council,17/03/2017,155567,8179.24,THOMSON REUTERS LEGAL UK & IRELAND,SWE001,Legal Services Manager,"Books, publications",2016,WESTLAW SERVICES 2017,LEGSER,Legal Services,00201,Legal & Committee
http://statistics.data.gov.uk/id/local-authority/16UF,Eden District Council,17/03/2017,155568,3687.16,THOMSON REUTERS LEGAL UK & IRELAND,SWE001,Legal Services Manager,"Books, publications",2016,PRACTICAL LAW SERVICES 2017,LEGSER,Legal Services,00201,Legal & Committee
http://statistics.data.gov.uk/id/local-authority/16UF,Eden District Council,17/03/2017,155947,2549.8,WALTON GOODLAND LTD,WAL008,Commercial Services Manager,Professional fees,2045,RATE FOR SURVEYOR,EDEVPR,Economic Development and Promotion,02001,Economic Promotion
http://statistics.data.gov.uk/id/local-authority/16UF,Eden District Council,17/03/2017,155969,2516,LAMBERT SMITH HAMPTON,LAM009,Planning Services,Professional fees,2045,PROFFESIONAL CHARGES 34 HOUES,DEVCOE,Development Control & Enforcement,03010,Development Control & Enforcement
http://statistics.data.gov.uk/id/local-authority/16UF,Eden District Council,17/03/2017,155981,3500,RSM UK TAX AND ACCOUNTING LTD,BAK009,Financial Services Manager,Professional fees,2045,PROFESSIONAL SERVICES OFF-PAYROLL PROJEC,FINSER,Financial Services,00101,Financial Services
http://statistics.data.gov.uk/id/local-authority/16UF,Eden District Council,17/03/2017,155849,3500,APPLETONS,APP032,Technical Services Manager,Other charges for services,2047,PENRITH CASTLE PARK PROFESSIONAL FEES,ARTLEI,Arts and Leisure,02116,Sports leisure develop fund
http://statistics.data.gov.uk/id/local-authority/16UF,Eden District Council,17/03/2017,155943,1145,HYDE HARRINGTON LTD,HYD001,Technical Services Manager,Other charges for services,2047,PENRITH CASTLE PARK,ARTLEI,Arts and Leisure,02116,Sports leisure develop fund
http://statistics.data.gov.uk/id/local-authority/16UF,Eden District Council,17/03/2017,156021,3833,WATERFORD TECHNOLOGIES LTD,WAT028,Information Technology Manager,Software � maintenance,2067,mailmeter annual premium support 17/18,INFTEC,Information Technology,00102,Information Technology
http://statistics.data.gov.uk/id/local-authority/16UF,Eden District Council,17/03/2017,155828,3240,TOTALMOBILE LTD,CON001,Financial Services Manager,Software � maintenance,2067,TM SERVICES + EXPENSES,FINSER,Financial Services,00101,Financial Services
http://statistics.data.gov.uk/id/local-authority/16UF,Eden District Council,17/03/2017,155415,13094.87,HALAROSE LIMITED,HAL013,Legal Services Manager,Software � maintenance,2067,ANNUAL SUPPORT/MAINT EROS 2017/18,ELECTI,Elections,01068,Elections
http://statistics.data.gov.uk/id/local-authority/16UF,Eden District Council,17/03/2017,155956,1000,EDEN HOUSING ASSOCIATION LTD,EDE001,Environmental Services,Grants and contributions,2079,ANNUAL GRANT VOLUNTEER VISITOR SER VICE,OHOUSG,Housing Delivery,02295,Community alarms
http://statistics.data.gov.uk/id/local-authority/16UF,Eden District Council,17/03/2017,155972,8125,VOLUNTARY ACTION CUMBRIA,VOL001,Commercial Services Manager,Grants and contributions,2079,SECOND P'MENT 2016/17 SERVICE LEVEL,TWNCEN,Town Centres,02071,ACT SLA Delivery
http://statistics.data.gov.uk/id/local-authority/16UF,Eden District Council,17/03/2017,155926,2700,ASTUN TECHNOLOGY LIMITED,AST004,Information Technology Manager,GIS Platform,2350,ASTUN TRAINING VOUCHER,INFTEC,Information Technology,00102,Information Technology
http://statistics.data.gov.uk/id/local-authority/16UF,Eden District Council,17/03/2017,155708,850,ASTUN TECHNOLOGY LIMITED,AST004,Information Technology Manager,GIS Platform,2350,ASTUN TRAINING VOUCHER,INFTEC,Information Technology,00102,Information Technology
http://statistics.data.gov.uk/id/local-authority/16UF,Eden District Council,17/03/2017,155951,1000,redacted information,SAW001,Environmental Services,Landlords Grants,5525,FINAL PAYMENT NEWBIGGIN,DIREGR,1996 Discretionary Renovation Grants,06034,1996 Discretionary Renovation Grants
http://statistics.data.gov.uk/id/local-authority/16UF,Eden District Council,17/03/2017,155977,1707.91,DISTRICT SURVEYORS  ASSOCIATION LIMITED,DIS001,Financial Services Manager,Balance brought forward BS,6000,LABC SERVICE FEE 2017/18,BUREGS,Building Regs,10263,Payments in Adv - Gf
http://statistics.data.gov.uk/id/local-authority/16UF,Eden District Council,17/03/2017,155201,19404.86,TOTALMOBILE LTD,CON001,Financial Services Manager,Balance brought forward BS,6000,SUPPORT 2017/18,FINSER,Financial Services,10263,Payments in Adv - Gf
http://statistics.data.gov.uk/id/local-authority/16UF,Eden District Council,17/03/2017,155816,1000,CIPFA,CIP001,Financial Services Manager,Balance brought forward BS,6000,INTERNET ACCESS 17/18 CIPFA STATS,FINSER,Financial Services,10263,Payments in Adv - Gf
http://statistics.data.gov.uk/id/local-authority/16UF,Eden District Council,17/03/2017,155723,1330,SHAW & SONS LTD,SHA002,Elections,Balance Sheet entry BS,6003,PRESIDING OFFICERS SUNDRIES,HOLD A/C'S,Holding Accounts,10305,Cumbria CC Elections
http://statistics.data.gov.uk/id/local-authority/16UF,Eden District Council,17/03/2017,155707,9710.62,GREENWICH LEISURE LTD,NCL001,Financial Services Manager,Balance Sheet entry BS,6003,JANUARY 17 VALUATION,LEICEN,Arts and Leisure,10181,GF Capital Receipts
http://statistics.data.gov.uk/id/local-authority/16UF,Eden District Council,17/03/2017,155591,5142,OPTECH FIBRES LTD,OPT002,Information Technology Manager,Contributions from general fund BS,7102,INSTALLATION OF NETWORK POINTS,INFTEC,Information Technology,10148,IT Repairs and Renewals Fund
http://statistics.data.gov.uk/id/local-authority/16UF,Eden District Council,17/03/2017,155829,916.75,PENRITH PLAYERS THEATRE LTD,PEN002,Commercial Services Manager,Commission,7504,ONE MAN TWO GUVNORS TICKETS,TAPTIC,Penrith TIC Trading Account,09164,Penrith TIC - Penrith Players
http://statistics.data.gov.uk/id/local-authority/16UF,Eden District Council,20/03/2017,156214,1142,BUSY BEES CHILDCARE VOUCHERS,BUS004,Commercial Services Manager,Child Care Voucher Scheme,0005,CHILDCARE VOUCHERS MARCH 17 DDR,COMSER,Commercial Services,00310,Commercial Services
http://statistics.data.gov.uk/id/local-authority/16UF,Eden District Council,23/03/2017,156234,2264.6,redacted information,FIE006,Director of Finance,Grants and contributions,2079,PLFRG EDC16248,FLOOD,Flood Dec 2015,09318,Flood Dec 2015
http://statistics.data.gov.uk/id/local-authority/16UF,Eden District Council,24/03/2017,155994,1650.63,OYSTER PARTNERSHIP,OYS001,Planning Services,Agency Staff,0003,W/C 27.02.17 ,PLASER,Planning Services,00304,Planning Services
http://statistics.data.gov.uk/id/local-authority/16UF,Eden District Council,24/03/2017,155870,6964,ENTERPRISE PROSPECTS LTD,ENT004,Chief Executive's,Agency Staff,0003,Chief Executive,CHIEXE,Chief Executive,00050,Chief Executive
http://statistics.data.gov.uk/id/local-authority/16UF,Eden District Council,24/03/2017,156070,1000,FLORENCE MADDEN ASSOCIATES,FLO004,Human Resources Manager,Training Expenses,0060,1 DELEGATE - ,STADEV,Staff Development,00227,Staff Training - Chief Executive
http://statistics.data.gov.uk/id/local-authority/16UF,Eden District Council,24/03/2017,156071,2500,FLORENCE MADDEN ASSOCIATES,FLO004,Human Resources Manager,Training Expenses,0060,3 DELEGATE - ,STADEV,Staff Development,00227,Staff Training - Chief Executive
http://statistics.data.gov.uk/id/local-authority/16UF,Eden District Council,24/03/2017,155749,614,AQUATROINC GROUP MANAGEMENT PLC,AGM002,Technical Services Manager,Planned Maintenance,1016,WORKS AS PER QUOTE AGM-10368,ADMBLD,Administrative Buildings,00502,Mansion House
http://statistics.data.gov.uk/id/local-authority/16UF,Eden District Council,24/03/2017,156004,5269.72,E.ON UK PLC,EON001,Technical Services Manager,Electricity,1022,STREET LIGHTING FEB17,FOOLIG,Footway Lighting,02258,Footway lighting
http://statistics.data.gov.uk/id/local-authority/16UF,Eden District Council,24/03/2017,155967,535.32,UNITED UTILITIES WATER LTD,UNI008,Technical Services Manager,Water charges � metered,1032,PCS BROAD CLOSE 23/10/16-22/01/2017,PUBCON,Public Conveniences,02282,Appleby Broad Close Public Convenience
http://statistics.data.gov.uk/id/local-authority/16UF,Eden District Council,24/03/2017,156107,14796.45,AMEY PLC,TFE001,Technical Services Manager,Window cleaning,1040,2017_BC_03,PUBCON,Public Conveniences,02630,Disabled Toilet Moot Hall Appleby
http://statistics.data.gov.uk/id/local-authority/16UF,Eden District Council,24/03/2017,156095,15716.36,AMEY PLC,TFE001,Technical Services Manager,GM INSPECTIONS & MAINTENANCE,1089,M-GM60,CLCHYD,Closed Church Yards,02246,War Memorials
http://statistics.data.gov.uk/id/local-authority/16UF,Eden District Council,24/03/2017,155944,6886.81,AMEY PLC,TFE001,Technical Services Manager,Grounds Maintenance Contract Bed Plants,1090,GM104,PARKOS,Parks and Open Spaces,02129,Open spaces
http://statistics.data.gov.uk/id/local-authority/16UF,Eden District Council,24/03/2017,155417,1254.21,CUMBRIA COUNTY COUNCIL,CCC002,Environmental Services,Fuel,1509,FUEL TRANSACTIONS  APR-DEC 16,CODOGS,Community Wardens,03044,Community  Warden
http://statistics.data.gov.uk/id/local-authority/16UF,Eden District Council,24/03/2017,155978,994.45,HEATONS OFFICE SOLUTIONS LTD,LAK004,Technical Services Manager,Equipment � purchase,2000,PAPER/STATIONERY/CHAIR,CENTRA,Central Expenses,00212,Health & Safety
http://statistics.data.gov.uk/id/local-authority/16UF,Eden District Council,24/03/2017,155673,800,APEX ACOUSTICS LTD,APE004,Planning Services,Printing and stationary,2037,NOISE ASSESSMENT APPLEBY,LOPLPO,Local Plans & Policy,03004,Eden Local Plan
http://statistics.data.gov.uk/id/local-authority/16UF,Eden District Council,24/03/2017,155746,1230,PENRITH FARMERS & KIDD PLC,PFK001,Planning Services,Printing and stationary,2037,LOCAL PLAN/LAND SUPPLY TRAINING p16/110,LOPLPO,Local Plans & Policy,03004,Eden Local Plan
http://statistics.data.gov.uk/id/local-authority/16UF,Eden District Council,24/03/2017,155124,750,CUMBRIA COUNTY COUNCIL,CCC002,Commercial Services Manager,Community engagement development,2042,FUNDING FOR DOMESTIC HOMICIDE 2016/17,COMDEV,Community Development & Engagement,01056,Consultation
http://statistics.data.gov.uk/id/local-authority/16UF,Eden District Council,24/03/2017,156013,10486,GRANT THORNTON UK LLP,THO026,Financial Services Manager,Audit fee,2043,INSTALMENT 3 OF 4 EXTERNAL AUDIT,CORPOR,Corporate Costs,01065,Audit Fee
http://statistics.data.gov.uk/id/local-authority/16UF,Eden District Council,24/03/2017,156102,1146.83,SOUTH LAKELAND DISTRICT COUNCIL,SOU006,Commercial Services Manager,Professional fees,2045,SUPPORT ALSTON MOOR PARTNERSHIP,EDEVPR,Economic Development and Promotion,02001,Economic Promotion
http://statistics.data.gov.uk/id/local-authority/16UF,Eden District Council,24/03/2017,155955,1260,CUMBRIA COUNTY COUNCIL,CCC002,Technical Services Manager,Professional fees,2045,JUL/AUG/SEPT 2016,LANDCH,Land Charges,01002,Land Charges
http://statistics.data.gov.uk/id/local-authority/16UF,Eden District Council,24/03/2017,155960,1500,redacted information,FOX002,Technical Services Manager,Professional fees,2045,DEVISE & DELIVER SESSIONS TREE TALES EXH,LANDCH,Land Charges,01002,Land Charges
http://statistics.data.gov.uk/id/local-authority/16UF,Eden District Council,24/03/2017,155984,1857.5,CAPITA PROPERTY & INFRASTRUCTURE LTD,CAP002,Planning Services,Professional fees,2045,ARBORICULTURAL CONSULTANCY FEB 2017,CONSER,Environmental Enhancement & Conservation,03012,Arboricutural Advice
http://statistics.data.gov.uk/id/local-authority/16UF,Eden District Council,24/03/2017,155381,3503.6,WALTON GOODLAND LTD,WAL008,Commercial Services Manager,Professional fees,2045,RATE FOR SURVEYOR JAN 14,EDEVPR,Economic Development and Promotion,02001,Economic Promotion
http://statistics.data.gov.uk/id/local-authority/16UF,Eden District Council,24/03/2017,155805,775,KBS BUSINESS CONSULTANCY,KBS001,Commercial Services Manager,Professional fees,2045,BUSINESS NEED ASSESSMENT,EDEVPR,Economic Development and Promotion,02001,Economic Promotion
http://statistics.data.gov.uk/id/local-authority/16UF,Eden District Council,24/03/2017,155945,559.7,UNITED UTILITIES WATER PLC,UNI024,Environmental Services,Professional fees,2045,EDC JAN 17 ANALYSIS,OENHEA,Other Environmental Health,03040,Sampling Swimming Pools
http://statistics.data.gov.uk/id/local-authority/16UF,Eden District Council,24/03/2017,156007,1125,XEROX FINANCE,XER003,Information Technology Manager,Printers Contract,2059,KIP RENT 24.02.17-23.05.17,INFTEC,Information Technology,00102,Information Technology
http://statistics.data.gov.uk/id/local-authority/16UF,Eden District Council,24/03/2017,156099,4250,BTS HOLDINGS PLC,BTS001,Information Technology Manager,Software � maintenance,2067,5 DAYS PROFESSIONAL SERVICES,INFTEC,Information Technology,00102,Information Technology
http://statistics.data.gov.uk/id/local-authority/16UF,Eden District Council,24/03/2017,155345,2045.2,CIVICA UK LTD,CIV002,None,Software � maintenance,2067,FASTPORTAL 17/08,CORPOR,Corporate Costs,01192,Delivering Digital Innovation
http://statistics.data.gov.uk/id/local-authority/16UF,Eden District Council,24/03/2017,156082,5000,redacted information,WAR026,Director of Finance,Grants and contributions,2079,PLFRGRANT EDC16107,FLOOD,Flood Dec 2015,09318,Flood Dec 2015
http://statistics.data.gov.uk/id/local-authority/16UF,Eden District Council,24/03/2017,156125,3125,CARLISLE CITY COUNCIL,CAR015,Legal Services Manager,Grants and contributions,2079,an evening with simon ,CRDRPA,Crime & Disorder Reduction Partnership,09091,CDRP
http://statistics.data.gov.uk/id/local-authority/16UF,Eden District Council,24/03/2017,155705,5200,redacted information,MCA002,Director of Finance,Grants and contributions,2079,PLFRG EDC16172/173,FLOOD,Flood Dec 2015,09318,Flood Dec 2015
http://statistics.data.gov.uk/id/local-authority/16UF,Eden District Council,24/03/2017,156066,513,PENRITH TODAY,PEN081,Commercial Services Manager,Promotions,2081,MARKETS ADVERTS,MARKET,Markets,02161,Markets
http://statistics.data.gov.uk/id/local-authority/16UF,Eden District Council,24/03/2017,155998,1600,CUMBERLAND AND WESTMORLAND HERALD,CUM001,Revenue/Benefits Manager,Advertising,2086,COUNCIl TAX,REVBEN,Revenue & Benefits,00106,Revenues
http://statistics.data.gov.uk/id/local-authority/16UF,Eden District Council,24/03/2017,156115,7497,UK NATIONWIDE CLEANING SERVICES LTD,UKN001,Technical Services Manager,Gum removal,2193,GUM REMOVEAL PENRITH/APPLEBY,STRCLE,Street Cleaning,02247,Street Cleaning
http://statistics.data.gov.uk/id/local-authority/16UF,Eden District Council,24/03/2017,156091,64262.9,AMEY PLC,TFE001,Technical Services Manager,Contract refuse collection,3003,M-RC60,REFCOL,Refuse Collection,03050,Clinical Expenditure
http://statistics.data.gov.uk/id/local-authority/16UF,Eden District Council,24/03/2017,156133,1130.51,AMEY PLC,TFE001,Technical Services Manager,Refuse Contract Dayworks,3012,RC49,REFCOL,Refuse Collection,03049,Refuse Collection Domestic
http://statistics.data.gov.uk/id/local-authority/16UF,Eden District Council,24/03/2017,156134,5337.44,AMEY PLC,TFE001,Technical Services Manager,Street Cleaning Contract,3100,SC43,STRCLE,Street Cleaning,02248,Fly tipping on verge
http://statistics.data.gov.uk/id/local-authority/16UF,Eden District Council,24/03/2017,156009,16837.1,AMEY PLC,TFE001,Environmental Services,Street Cleaning Contract,3100,M-SC60,APFAIR,Appleby Fair,03036,Appleby Fair
http://statistics.data.gov.uk/id/local-authority/16UF,Eden District Council,24/03/2017,156022,2843.27,AMEY PLC,TFE001,Technical Services Manager,FL  Contract,3300,FL-12/2016/17,FOOLIG,Footway Lighting,02258,Footway lighting
http://statistics.data.gov.uk/id/local-authority/16UF,Eden District Council,24/03/2017,156126,624,ELECTRICITY NORTH WEST LTD,ELE005,Technical Services Manager,FL External Contractors,3303,LAMP DISC. BERRIER RD,FOOLIG,Footway Lighting,02258,Footway lighting
http://statistics.data.gov.uk/id/local-authority/16UF,Eden District Council,24/03/2017,156127,624,ELECTRICITY NORTH WEST LTD,ELE005,Technical Services Manager,FL External Contractors,3303,LAMP DISC. CAUSEWAY HSE,FOOLIG,Footway Lighting,02258,Footway lighting
http://statistics.data.gov.uk/id/local-authority/16UF,Eden District Council,24/03/2017,156129,624,ELECTRICITY NORTH WEST LTD,ELE005,Technical Services Manager,FL External Contractors,3303,LAMP DISC. SKIRWITH,FOOLIG,Footway Lighting,02258,Footway lighting
http://statistics.data.gov.uk/id/local-authority/16UF,Eden District Council,24/03/2017,156130,624,ELECTRICITY NORTH WEST LTD,ELE005,Technical Services Manager,FL External Contractors,3303,LAMP DISC. KELD,FOOLIG,Footway Lighting,02258,Footway lighting
http://statistics.data.gov.uk/id/local-authority/16UF,Eden District Council,24/03/2017,156142,624,ELECTRICITY NORTH WEST LTD,ELE005,Technical Services Manager,FL External Contractors,3303,LAMP DISC BLEASE RD THRELKELD,FOOLIG,Footway Lighting,02258,Footway lighting
http://statistics.data.gov.uk/id/local-authority/16UF,Eden District Council,24/03/2017,156072,7466.26,CUMBRIA WASTE RECYCLING LTD,CUM022,Technical Services Manager,Recycling  - Bring Sites,3601,BS-54,RECYCL,Recycling,03047,Recycling
http://statistics.data.gov.uk/id/local-authority/16UF,Eden District Council,24/03/2017,156094,1596.64,CUMBRIA WASTE RECYCLING LTD,CUM022,Technical Services Manager,material price fluctuations,3604,F-11-16/17,RECYCL,Recycling,03047,Recycling
http://statistics.data.gov.uk/id/local-authority/16UF,Eden District Council,24/03/2017,156100,926,ELECTRICITY NORTH WEST LTD,ELE005,Technical Services Manager,Building works,5502,TRANSFER KNOCK HJALL KNOCK,FOOLIG,Cap Footway Lighting,06149,Cap Footway Lighting
http://statistics.data.gov.uk/id/local-authority/16UF,Eden District Council,24/03/2017,156105,926,ELECTRICITY NORTH WEST LTD,ELE005,Technical Services Manager,Building works,5502,TRANSFER  GT MUSGRAVE,FOOLIG,Cap Footway Lighting,06149,Cap Footway Lighting
http://statistics.data.gov.uk/id/local-authority/16UF,Eden District Council,24/03/2017,156073,705.49,WESTMORLAND FIRE & SECURITY,WES001,Financial Services Manager,Balance brought forward BS,6000,MAINTENANCE FOR FIRE ALARM MH,ADMBLD,Administrative Buildings,10263,Payments in Adv - Gf
http://statistics.data.gov.uk/id/local-authority/16UF,Eden District Council,24/03/2017,156097,780,CIPFA,CIP001,Financial Services Manager,Balance brought forward BS,6000,TIS ONLINE TAKE 5 17/18,FINSER,Financial Services,10263,Payments in Adv - Gf
http://statistics.data.gov.uk/id/local-authority/16UF,Eden District Council,24/03/2017,156106,1291.61,UNIT4 BUSINESS SOFTWARE (IRELAND) LTD,UNI038,Financial Services Manager,Balance brought forward BS,6000,ANNUAL MAINTENANCE 17/18,ADMBLD,Administrative Buildings,10263,Payments in Adv - Gf
http://statistics.data.gov.uk/id/local-authority/16UF,Eden District Council,24/03/2017,155988,7918.34,UNITED UTILITIES WATER LTD,UNI008,Financial Services Manager,Balance brought forward BS,6000,MANSION HSE APR 17 - MAR 18,ADMBLD,Administrative Buildings,10263,Payments in Adv - Gf
http://statistics.data.gov.uk/id/local-authority/16UF,Eden District Council,24/03/2017,155989,3561.5,UNITED UTILITIES WATER LTD,UNI008,Financial Services Manager,Balance brought forward BS,6000,TOWN HALL APR 17 - MAR 18,ADMBLD,Administrative Buildings,10263,Payments in Adv - Gf
http://statistics.data.gov.uk/id/local-authority/16UF,Eden District Council,24/03/2017,155600,3570,CIVICA UK LTD,CIV002,Financial Services Manager,Balance brought forward BS,6000,LICENCE SUPPORT/MAINTENANCE 2017/18,REVBEN,Revenue & Benefits,10263,Payments in Adv - Gf
http://statistics.data.gov.uk/id/local-authority/16UF,Eden District Council,24/03/2017,155957,2412,EDMUNDSON ELECTRICAL,EDM004,Technical Services Manager,Balance Sheet entry BS,6003,LIGHTING,MUSEUM,Museum,10342,PENRITH MUSEUM GRANT FUND
http://statistics.data.gov.uk/id/local-authority/16UF,Eden District Council,24/03/2017,156000,11315.45,PRINT IMAGE FACILITIES LLP,PRI014,Elections,Balance Sheet entry BS,6003,EDEN 2017 POLL CARD POSTAGE,HOLD A/C'S,Holding Accounts,10305,Cumbria CC Elections
http://statistics.data.gov.uk/id/local-authority/16UF,Eden District Council,31/03/2017,156132,1727.55,OYSTER PARTNERSHIP,OYS001,Planning Services,Agency Staff,0003,w/c 06/03/17 ,PLASER,Planning Services,00304,Planning Services
http://statistics.data.gov.uk/id/local-authority/16UF,Eden District Council,31/03/2017,156202,1750,CASTLERIGG CONSULTING LTD,CAS007,Human Resources Manager,Training Expenses,0060,CONSULTANCY TO SUPPORT EDEN DIGITAL,STADEV,Staff Development,00223,Staff Training DoG
http://statistics.data.gov.uk/id/local-authority/16UF,Eden District Council,31/03/2017,156203,1050,CASTLERIGG CONSULTING LTD,CAS007,Human Resources Manager,Training Expenses,0060,CONSULTANCY  DIGITAL PROGRAMME BOARD,STADEV,Staff Development,00225,Staff Training Communities
http://statistics.data.gov.uk/id/local-authority/16UF,Eden District Council,31/03/2017,154433,682.86,AMEY PLC,TFE001,Technical Services Manager,Planned Maintenance,1016,manhole cover/unblock drain appleby pcs,PUBCON,Public Conveniences,02282,Appleby Broad Close Public Convenience
http://statistics.data.gov.uk/id/local-authority/16UF,Eden District Council,31/03/2017,154835,3053.5,TESGL LTD,NOB001,Technical Services Manager,Planned Maintenance,1016,REPLACE SIEMENS/DRAYTON OPTIMISER,ADMBLD,Administrative Buildings,00502,Mansion House
http://statistics.data.gov.uk/id/local-authority/16UF,Eden District Council,31/03/2017,155075,3516.34,AMEY PLC,TFE001,Technical Services Manager,Planned Maintenance,1016,RE DECORATE/RE CARPET FF17 / FF18,ADMBLD,Administrative Buildings,00502,Mansion House
http://statistics.data.gov.uk/id/local-authority/16UF,Eden District Council,31/03/2017,153564,11710.05,AMEY PLC,TFE001,Technical Services Manager,Planned Maintenance,1016,STRIP/REINSTATE WORKS DRY ROT,ADMBLD,Administrative Buildings,00500,Town Hall
http://statistics.data.gov.uk/id/local-authority/16UF,Eden District Council,31/03/2017,156303,985.05,NPOWER LTD,NPO001,Technical Services Manager,Electricity,1022,TOWN HALL 01.02.17-28.02.17,ADMBLD,Administrative Buildings,00500,Town Hall
http://statistics.data.gov.uk/id/local-authority/16UF,Eden District Council,31/03/2017,156307,899.09,NPOWER LTD,NPO001,Commercial Services Manager,Electricity,1022,PENRITH TIC 01.12.16-02.02.17,MUSEUM,Museum,02090,Penrith Museum
http://statistics.data.gov.uk/id/local-authority/16UF,Eden District Council,31/03/2017,156309,797.77,NPOWER LTD,NPO001,Technical Services Manager,Electricity,1022,MANSION HOUSE 01.12.16-03.01-17,ADMBLD,Administrative Buildings,00502,Mansion House
http://statistics.data.gov.uk/id/local-authority/16UF,Eden District Council,31/03/2017,156199,1100,CHRIS WAKEFIELD TREE SVCS,CHR001,Technical Services Manager,GM External Contractors,1080,PENRITH CEMETERY,CEMETE,Cemeteries,02236,Penrith Cemetery Chapel
http://statistics.data.gov.uk/id/local-authority/16UF,Eden District Council,31/03/2017,156138,536.25,TRANS K9,TRA008,Environmental Services,Other costs (Transport),1506,DOG TRANSIT BOX,CODOGS,Community Wardens,03044,Community  Warden
http://statistics.data.gov.uk/id/local-authority/16UF,Eden District Council,31/03/2017,156252,2680.4,PROBRAND LIMITED,PRO008,Information Technology Manager,Supplies general,2015,SSDNOW V300,COMMEM,Committee and Member Costs,01081,Member I T Costs
http://statistics.data.gov.uk/id/local-authority/16UF,Eden District Council,31/03/2017,156117,500,CUMBERLAND AND WESTMORLAND HERALD,CUM001,Planning Services,Printing and stationary,2037,EDEN LOCAL PLAN,LOPLPO,Local Plans & Policy,03004,Eden Local Plan
http://statistics.data.gov.uk/id/local-authority/16UF,Eden District Council,31/03/2017,156150,8175.83,PURCELL MILLER TRITTON LLP,PUR010,Commercial Services Manager,Professional fees,2045,SITE INSPECTION AND PREP,EDEVPR,Economic Development and Promotion,02390,High Mill Alston
http://statistics.data.gov.uk/id/local-authority/16UF,Eden District Council,31/03/2017,155566,1832.73,HEATONS OFFICE SOLUTIONS LTD,LAK004,Legal Services Manager,Other charges for services,2047,FURNITURE/PAPER/STATIONERY,COMDEV,Community Development & Engagement,01195,Consultation Support
http://statistics.data.gov.uk/id/local-authority/16UF,Eden District Council,31/03/2017,156149,656,PENRITH SWIMMING CLUB,PEN056,Technical Services Manager,Other charges for services,2047,SPORTS COACH BURSARY,ARTLEI,Arts and Leisure,02116,Sports leisure develop fund
http://statistics.data.gov.uk/id/local-authority/16UF,Eden District Council,31/03/2017,155953,4618.92,LIFESTYLE MEDIA GROUP LTD,CAT003,Commercial Services Manager,Distribution,2051,FULFILMENT FEB 2017,TOUPRO,Tourism Promotion,02056,Eden Tourism
http://statistics.data.gov.uk/id/local-authority/16UF,Eden District Council,31/03/2017,156119,1916.4,LIFESTYLE MEDIA GROUP LTD,CAT003,Commercial Services Manager,Distribution,2051,BROCHURE REQUESTS,TOUPRO,Tourism Promotion,02056,Eden Tourism
http://statistics.data.gov.uk/id/local-authority/16UF,Eden District Council,31/03/2017,155946,1152.66,ROYAL MAIL NW,ROY001,Revenue/Benefits Manager,Postages,2054,MAIL 08.02.17-28.02.17,REVBEN,Revenue & Benefits,00106,Revenues
http://statistics.data.gov.uk/id/local-authority/16UF,Eden District Council,31/03/2017,156131,590.45,NEOPOST LIMITED,NEO002,Corporate Services Manager,Postages,2054,cartridges/labels,CENTRA,Central Expenses,00205,Postages Town Hall
http://statistics.data.gov.uk/id/local-authority/16UF,Eden District Council,31/03/2017,155657,905.76,CARLISLE CITY COUNCIL,CAR015,Revenue/Benefits Manager,Subscriptions & levies,2078,CUMBRIA SPD REVIEW,REVBEN,Revenue & Benefits,00106,Revenues
http://statistics.data.gov.uk/id/local-authority/16UF,Eden District Council,31/03/2017,155674,13876,redacted information,ELL017,Director of Finance,Grants and contributions,2079,PLFRG EDC16335 EDC16336 EDC16337,FLOOD,Flood Dec 2015,09318,Flood Dec 2015
http://statistics.data.gov.uk/id/local-authority/16UF,Eden District Council,31/03/2017,156116,2200,CUMBRIA ASSOCIATION OF LOCAL COUNCILS,CUM039,Legal Services Manager,Grants and contributions,2079,PROVISION OF SUPPORT,COMDEV,Community Development & Engagement,01124,CALC 2H
http://statistics.data.gov.uk/id/local-authority/16UF,Eden District Council,31/03/2017,155963,916.54,AMEY PLC,TFE001,Commercial Services Manager,Promotions,2081,ERECT/REMOVE TREE & LIGHTS PAT TEST,MARKET,Markets,02161,Markets
http://statistics.data.gov.uk/id/local-authority/16UF,Eden District Council,31/03/2017,156145,1340,MEDIA FRIENDLY LTD,MED006,Legal Services Manager,Advertising,2086,SEMINAR & MEDIA TRAINING,COMMSV,Communications Services,01127,Corporate Advertising
http://statistics.data.gov.uk/id/local-authority/16UF,Eden District Council,31/03/2017,156200,617.4,NPD NORTH LTD,NPD001,Commercial Services Manager,Advertising,2086,ADVERT IN PERFECT DAYS OUT LEAFLET,TOUPRO,Tourism Promotion,02056,Eden Tourism
http://statistics.data.gov.uk/id/local-authority/16UF,Eden District Council,31/03/2017,155880,1094.8,J T ATKINSON & SONS LTD,JTA001,Technical Services Manager,Miscellaneous,2092,SAND/BAGS,EMWKPL,Emergency Planning and Works,01089,Emergency Works
http://statistics.data.gov.uk/id/local-authority/16UF,Eden District Council,31/03/2017,156277,700,APPLEBY TOWN COUNCIL,APP001,Technical Services Manager,VRC Payments,2103,PAYMENT FOR APPLEBY RECYCLING CENTRE,RECYCL,Recycling,03047,Recycling
http://statistics.data.gov.uk/id/local-authority/16UF,Eden District Council,31/03/2017,156244,3796,CARLISLE CITY COUNCIL,CAR015,Technical Services Manager,Cash collection,2156,OFF ST CASH COLL. FOURTH QTR 2016/17,OFFSTR,Vehicle Parking Off Street,02167,Vehicle parking
http://statistics.data.gov.uk/id/local-authority/16UF,Eden District Council,31/03/2017,156294,1208.64,PLAYDALE PLAYGROUNDS LTD,PLA007,Technical Services Manager,Replacement Works (Play Areas),2195,BOLTON PLAY AREA,PARKOS,Parks and Open Spaces,02143,Play Areas
http://statistics.data.gov.uk/id/local-authority/16UF,Eden District Council,31/03/2017,156093,3150,M TAYLOR ASSOCIATES LTD,TAY017,Human Resources Manager,Workforce Development Plan Activity,2229,CONSULTANCY FOR HR,STADEV,Staff Development,00222,Central Training Budget
http://statistics.data.gov.uk/id/local-authority/16UF,Eden District Council,31/03/2017,156278,3825,M TAYLOR ASSOCIATES LTD,TAY017,Human Resources Manager,Workforce Development Plan Activity,2229,HR CONSULTANCY,STADEV,Staff Development,00222,Central Training Budget
http://statistics.data.gov.uk/id/local-authority/16UF,Eden District Council,31/03/2017,156279,1002.5,APPLEBY HERTITAGE CENTRE,APP008,Human Resources Manager,Workforce Development Plan Activity,2229,TRAINING,STADEV,Staff Development,00222,Central Training Budget
http://statistics.data.gov.uk/id/local-authority/16UF,Eden District Council,31/03/2017,155669,2734.47,CUMBRIA COUNTY COUNCIL,CCC002,Technical Services Manager,Contract parking Service,3004,OFF STREET PArking/penalty notices,OFFSTR,Vehicle Parking Off Street,02167,Vehicle parking
http://statistics.data.gov.uk/id/local-authority/16UF,Eden District Council,31/03/2017,156290,958.6,AMEY PLC,TFE001,Technical Services Manager,Refuse Contract Dayworks,3012,RC50,REFCOL,Refuse Collection,03049,Refuse Collection Domestic
http://statistics.data.gov.uk/id/local-authority/16UF,Eden District Council,31/03/2017,156289,3873.53,AMEY PLC,TFE001,Technical Services Manager,Street Cleaning Contract,3100,SC44,STRCLE,Street Cleaning,02248,Fly tipping on verge
http://statistics.data.gov.uk/id/local-authority/16UF,Eden District Council,31/03/2017,153966,850.25,AMEY PLC,TFE001,Environmental Services,Dog Contract O.O.H retainer,3200,KENNELLING SEPTEMBER 2016,CODOGS,Community Wardens,03045,Dog Control
http://statistics.data.gov.uk/id/local-authority/16UF,Eden District Council,31/03/2017,155677,850.25,AMEY PLC,TFE001,Environmental Services,Dog Contract O.O.H retainer,3200,KENNELLING/STRAY DOGS,CODOGS,Community Wardens,03045,Dog Control
http://statistics.data.gov.uk/id/local-authority/16UF,Eden District Council,31/03/2017,156198,19070.24,CUMBRIA WASTE RECYCLING LTD,CUM022,Technical Services Manager,Recycling - Bag & Box,3600,GB-11-16/17,RECYCL,Recycling,03047,Recycling
http://statistics.data.gov.uk/id/local-authority/16UF,Eden District Council,31/03/2017,156112,21307.06,CUMBRIA WASTE RECYCLING LTD,CUM022,Technical Services Manager,Recycling - Garden Waste,3602,GE-11-16/17,RECYCL,Recycling,03047,Recycling
http://statistics.data.gov.uk/id/local-authority/16UF,Eden District Council,31/03/2017,156136,2692.26,CUMBRIA WASTE RECYCLING LTD,CUM022,Technical Services Manager,material price fluctuations,3604,BS-F-31-16/17,RECYCL,Recycling,03047,Recycling
http://statistics.data.gov.uk/id/local-authority/16UF,Eden District Council,31/03/2017,156318,648,AMEY PLC,TFE001,Technical Services Manager,Building works,5502,Culgaith Light Heads,FOOLIG,Cap Footway Lighting,06149,Cap Footway Lighting
http://statistics.data.gov.uk/id/local-authority/16UF,Eden District Council,31/03/2017,156246,12000,redacted information,AIT002,Environmental Services,Decent Homes Grants,5524,160037/ NENTHEAD,DIREGR,1996 Discretionary Renovation Grants,06034,1996 Discretionary Renovation Grants
http://statistics.data.gov.uk/id/local-authority/16UF,Eden District Council,31/03/2017,156135,866.56,RENTOKIL INITIAL PEST CONTROL,REN009,Financial Services Manager,Balance brought forward BS,6000,PESTS MUSCELLANEOUS APR 17,PLNCNL,POLLUTION CONTROL,10263,Payments in Adv - Gf
http://statistics.data.gov.uk/id/local-authority/16UF,Eden District Council,31/03/2017,156206,1000,TAMESIDE METROPOLITAN BOROUGH,TAM001,Financial Services Manager,Balance brought forward BS,6000,ANNUAL SUBSCRIPTION 2017/18,DIRFIN,Director Finance,10263,Payments in Adv - Gf
http://statistics.data.gov.uk/id/local-authority/16UF,Eden District Council,31/03/2017,156208,38387.98,JARDINE LLOYD THOMPSON UK LTD,JAR003,Financial Services Manager,Balance brought forward BS,6000,PROPERTY/TERRORISM,INSURE,INSURANCE,10263,Payments in Adv - Gf
http://statistics.data.gov.uk/id/local-authority/16UF,Eden District Council,31/03/2017,156211,66108.9,JARDINE LLOYD THOMPSON UK LTD,JAR003,Financial Services Manager,Balance brought forward BS,6000,CASUALTY,INSURE,INSURANCE,10263,Payments in Adv - Gf
http://statistics.data.gov.uk/id/local-authority/16UF,Eden District Council,31/03/2017,153296,16727.22,AMEY PLC,TFE001,Director of Finance,Balance Sheet entry BS,6003,RE INSTATE WIORKS DUE TO FLOODING,FLOOD,Appleby Pool Flood 2015,09319,Appleby Pool Flood 2015
http://statistics.data.gov.uk/id/local-authority/16UF,Eden District Council,31/03/2017,154479,5628,WHITE YOUNG GREEN CONSULTING LTD,WHI002,Technical Services Manager,Balance Sheet entry BS,6003,CONSULTANCY LEISURE CENTRE HEATING,LEICEN,Eden Leisure Centre & Appleby Swimming P,10388,Leisure Contract Provision
http://statistics.data.gov.uk/id/local-authority/16UF,Eden District Council,31/03/2017,156212,1500,KIRKLAND & BLENCARN VILLAGE HALL,KIR004,Commercial Services Manager,Balance Sheet entry BS,6003,ECF161 20.03.17,CMFND,Community Fund,10400,Community Fund
http://statistics.data.gov.uk/id/local-authority/16UF,Eden District Council,31/03/2017,156322,-16727.22,AMEY PLC,TFE001,Director of Finance,Balance Sheet entry BS,6003,Appleby PC - Flooding,FLOOD,Appleby Pool Flood 2015,09319,Appleby Pool Flood 2015
http://statistics.data.gov.uk/id/local-authority/16UF,Eden District Council,31/03/2017,156323,15563.9,AMEY PLC,TFE001,Director of Finance,Balance Sheet entry BS,6003,Appleby PC - Flooding,FLOOD,Appleby Pool Flood 2015,09319,Appleby Pool Flood 2015
http://statistics.data.gov.uk/id/local-authority/16UF,Eden District Council,31/03/2017,156151,700,WARCOP NEW VILLAGE HALL,WAR027,None,Unique payments ****,6006,leisure grant sports equipment,ARTLEI,Arts and Leisure,10158,Leisure Grants Fund
http://statistics.data.gov.uk/id/local-authority/16UF,Eden District Council,31/03/2017,164661,12800,LGPS,LGP001,Financial Services Manager,Additional Pensions,0030,Additional Employers Superannuation Cont,CORPOR,Corporate Costs,01179,Additional Employers Superannuation Cont
http://statistics.data.gov.uk/id/local-authority/16UF,Eden District Council,31/03/2017,164895,2230.34,BARCLAYS,BBB001,Financial Services Manager,Bank charges,2088,Commission Dec-March 2017,CORPOR,Corporate Costs,01064,Bank Charges
